Cogmind - Beta 13 @@@ ROGUE MODE // 2024.05.04 @ 00:11:53 Player: Occam Result: Destroyed by G-47 Trooper with Particle Gun Performance ------------- Evolutions (0) 0 Regions Visited (2) 400 Robots Destroyed (31) 155 Value Destroyed (557) 557 Prototype IDs (2) 40 Alien Tech Used (0) 0 Bonus (0) 0 TOTAL SCORE: 1152 Bonus ------- None Cogmind --------- Core Integrity 0/250 Matter 300/300 Energy 248/250 System Corruption 0% Temperature Cool (72) Movement Rolling (175) Ox5 Location -10/Mines Parts ------- > --- POWER (1) -------- Ion Engine > --- PROPULSION (2) --- Light Treads Compact Wheel > --- UTILITY (2) ------ Improved Heat Sink Huge Storage Unit > --- WEAPON (2) ------- Particle Gun Particle Gun > --- INVENTORY (25) --- Light Ion Engine Light Treads Compact Wheel Large Storage Unit Medium Matter Pod (100) Structural Scanner Targeting Computer Hacking Suite Hacking Suite Small Laser Particle Gun Particle Gun Assault Rifle Assault Rifle Rocket Launcher Rocket Launcher Rocket Launcher Datajack Mace Peak State ------------ > --- POWER ------------ Ion Engine > --- PROPULSION ------- Light Treads Compact Wheel > --- UTILITY ---------- Improved Heat Sink Huge Storage Unit > --- WEAPON ----------- Particle Gun Particle Gun > --- INVENTORY -------- Light Ion Engine Light Treads Light Treads Compact Wheel Large Storage Unit Medium Matter Pod Structural Scanner Targeting Computer Hacking Suite Hacking Suite Small Laser Particle Gun Particle Gun Assault Rifle Assault Rifle Rocket Launcher Rocket Launcher Rocket Launcher Datajack Mace [Rating: 14] Favorites ----------- Power Ion Engine Engine Ion Engine Propulsion Light Treads Treads Light Treads Leg Aluminum Leg Wheel Compact Wheel Utility Small Storage Unit Device Improved Heat Sink Storage Small Storage Unit Weapon Particle Gun Energy Gun Particle Gun Ballistic Gun Light Assault Rifle Build | -11 -10 -10 ------- Run | Yrd Mat Min Slots Evolved . | . . . Power . | . . . Propulsion . | . . . Utility . | . . . Weapon . | . . . Parts Attached 18 | 2 15 1 Power 3 | . 3 . Engine 3 | . 3 . Core . | . . . Reactor . | . . . Propulsion 5 | . 4 1 Treads 4 | . 3 1 Leg . | . . . Wheel 1 | . 1 . Hover . | . . . Flight . | . . . Utility 6 | 1 5 . Device 4 | 1 3 . Storage 2 | . 2 . Processor . | . . . Hackware . | . . . Protection . | . . . Artifact . | . . . Weapon 4 | 1 3 . Energy Gun 3 | . 3 . Energy Cannon . | . . . Ballistic Gun 1 | 1 . . Ballistic Cannon . | . . . Launcher . | . . . Special Weapon . | . . . Impact Weapon . | . . . Slashing Weapon . | . . . Piercing Weapon . | . . . Special Melee Weapon . | . . . Unidentified Prototypes . | . . . Parts Lost 3 | . 2 1 Power 1 | . 1 . Propulsion 1 | . . 1 Utility . | . . . Weapon 1 | . 1 . Highest Loss Streak 2 | . 2 1 To Critical Strikes 1 | . . 1 Average Slot Usage (%) 99 | . 99 98 Engine 13 | . 13 14 Treads 20 | . 21 12 Leg 2 | . 2 . Wheel 4 | . 4 14 Device 14 | . 14 14 Storage 14 | . 14 14 Energy Gun 19 | . 19 28 Ballistic Gun 8 | . 8 . Naked Turns . | . . . Heaviest Build 92 | 12 92 92 Greatest Support 40 | 20 40 16 Greatest Overweight (x) 5 | . 5 5 Average Overweight (x) 1 | . 1 5 Largest Inventory Capacity 25 | 8 25 25 Average Capacity 14 | 8 14 25 Most Carried 20 | 7 20 20 Average Carried 11 | 5 11 19 Final Capacity 25 | 8 25 25 Final Carried 20 | 5 20 19 Class Distribution -------------------- 94% | Mutant 5% | Scavenger-Mutant Dominant Class ---------------- Mutant | -10/Materials Scavenger-Mutant | -10/Mines Resources | -11 -10 -10 ----------- Run | Yrd Mat Min Matter Collected 563 | 228 325 10 Remotely . | . . . Salvage Created 1101 | 125 907 69 Parts 70 | 4 60 6 Haulers Intercepted 2 | . 2 . Recyclers Shooed 2 | . 1 1 Parts Field Recycled . | . . . Retrieved Matter . | . . . Parts Self-Destructed . | . . . Prevented . | . . . Kills | -11 -10 -10 ------- Run | Yrd Mat Min Combat Hostiles Destroyed 16 | . 13 3 Guns 16 | . 13 3 Classes Destroyed 9 | 2 7 . Worker 2 | . 2 . Tunneler 2 | 1 . 1 Hauler 2 | . 2 . Recycler 3 | 1 2 . Mechanic 1 | . 1 . Operator 2 | . 2 . Watcher 3 | . 3 . Swarmer 6 | . 3 3 Grunt 10 | . 10 . Best Kill Streak 5 | 1 5 3 Combat Bots Only 3 | . 3 3 Max Kills in Single Turn 1 | 1 1 1 Gunslinging . | . . . Exploded . | . . . Melee . | . . . Uniques/NPCs Destroyed . | . . . Combat | -11 -10 -10 -------- Run | Yrd Mat Min Hostile Shots Fired 96 | . 77 19 Missed 24 | . 20 4 Damage Taken 812 | . 671 141 Core 266 | . 202 64 Absorbed by Shields . | . . . Regen/Repaired (Parts) 76 | . 76 . Core Remaining (%) 100 | 100 . . Volleys Fired 111 | 8 93 10 Largest 2 | 2 2 2 Hottest 130 | 70 130 130 Shots Fired 221 | 16 185 20 Gun 221 | 16 185 20 Cannon . | . . . Launcher . | . . . Special . | . . . Kinetic 93 | 8 85 . Thermal 128 | 8 100 20 Explosive . | . . . Electromagnetic . | . . . Robot Hit Streak 12 | 9 12 5 Robot Miss Streak 4 | 2 3 4 Penetration Max . | . . . Secondary Targets 2 | . 1 1 Max Gunslinging Chain 1 | . 1 1 Shots Hit Robots 136 | 12 113 11 Core Hits 54 | 4 45 5 Critical Kills . | . . . Critical Parts Destroyed . | . . . Critical Strikes 11 | 1 9 1 Burn 11 | 1 9 1 Melee Attacks . | . . . Impact . | . . . Slashing . | . . . Piercing . | . . . Sneak Attacks . | . . . Combat Hostiles . | . . . Follow-up Attacks . | . . . Damage Inflicted 1558 | 134 1244 180 Guns 1558 | 134 1244 180 Cannons . | . . . Explosions . | . . . Melee . | . . . Ramming . | . . . Kinetic 485 | 46 439 . Thermal 1073 | 88 805 180 Explosive . | . . . Electromagnetic . | . . . Impact . | . . . Slashing . | . . . Piercing . | . . . Highest Corruption . | . . . Average Corruption . | . . . Corruption Purged . | . . . Corruption Blocked . | . . . Overload Shots . | . . . Overflow Damage . | . . . Projectiles . | . . . Explosions . | . . . Melee . | . . . Knockbacks . | . . . Impact . | . . . Kinetic . | . . . Secondary . | . . . Self-Inflicted Damage . | . . . Shots . | . . . Rammed . | . . . Targets Rammed . | . . . Kicked . | . . . Crushed . | . . . Highest Temperature 313 | 60 313 162 Average Temperature 57 | 25 60 64 Received Heat Transfer 381 | . 354 27 Effects 3 | . 3 . Interference 3 | . 3 . Siege Activations . | . . . Robots Corrupted . | . . . Combat Hostiles . | . . . Parts Fried . | . . . Impact Corruptions . | . . . Robots Melted . | . . . Combat Hostiles . | . . . Parts Melted 8 | . 8 . Heat Transferred 3775 | 333 2961 481 Parts Sabotaged . | . . . Parts Stolen . | . . . Parts Stripped . | . . . Power Chain Reactions . | . . . Alert | -11 -10 -10 ------- Run | Yrd Mat Min Peak Influence 165 | 10 165 65 Initial 6 | . 6 . Average 72 | 4 76 59 Maximum Alert Level . | . . . Low Security (%) 100 | 100 100 100 Level 1 . | . . . Level 2 . | . . . Level 3 . | . . . Level 4 . | . . . Level 5 . | . . . High Security . | . . . Max Security . | . . . Squads Dispatched 3 | . 3 . Investigation 1 | . 1 . Extermination . | . . . Reinforcement 2 | . 2 . Assault . | . . . Garrison . | . . . Intercept . | . . . Searches Triggered . | . . . Construction Impeded . | . . . Haulers Reinforced . | . . . Active Scanning Responses . | . . . Cargo Convoy Interrupts . | . . . Stealth | -11 -10 -10 --------- Run | Yrd Mat Min Distress Signals 1 | . 1 . Communications Jammed . | . . . Distress Signals . | . . . Times Spotted 33 | . 28 5 Peak Tracking Total 5 | . 5 3 Tactical Retreats 1 | . 1 . Traps | -11 -10 -10 ------- Run | Yrd Mat Min Traps Triggered . | . . . Indirectly . | . . . Trap Hack Attempts . | . . . Triggered . | . . . Disarmed . | . . . Reprogrammed . | . . . Reused . | . . . Traps Extracted . | . . . Installed . | . . . Triggered . | . . . Machines | -11 -10 -10 ---------- Run | Yrd Mat Min Machines Disabled . | . . . Max in Single Turn . | . . . Machines Repaired . | . . . Machines Dismantled . | . . . Machines Sabotaged . | . . . Overloaded Fab Kills . | . . . Hacking | -11 -10 -10 --------- Run | Yrd Mat Min Machines Accessed 7 | . 7 . Terminals 6 | . 6 . Fabricators . | . . . Repair Stations 1 | . 1 . Recycling Units . | . . . Scanalyzers . | . . . Garrison Access . | . . . Total Hacks 24 | . 24 . Successful 10 | . 10 . Failed 13 | . 13 . Catastrophic 3 | . 3 . Database Lockouts 1 | . 1 . Manual 11 | . 11 . Terminals 22 | . 22 . Fabricators . | . . . Repair Stations 2 | . 2 . Recycling Units . | . . . Scanalyzers . | . . . Garrison Access . | . . . Terminal Hacks 5 | . 5 . Robot Analysis 2 | . 2 . Prototype ID Bank 1 | . 1 . Alert Level 1 | . 1 . Locate Traps 1 | . 1 . Fabricator Hacks . | . . . Repair Station Hacks 2 | . 2 . Scan Component 1 | . 1 . Repair 1 | . 1 . Recycling Unit Hacks . | . . . Scanalyzer . | . . . Garrison Access Hacks . | . . . Unauthorized Hacks 3 | . 3 . Terminals 3 | . 3 . Botnet 2 | . 2 . Operators 1 | . 1 . Fabricators . | . . . Repair Stations . | . . . Recycling Units . | . . . Scanalyzers . | . . . Garrison Access . | . . . Data Cores Recovered . | . . . Used . | . . . Hacking Detections 6 | . 6 . Full Trace Events 1 | . 1 . Feedback Events . | . . . Feedback Blocked . | . . . Robot Schematics Acquired . | . . . Robots Built . | . . . Authchips . | . . . Time . | . . . Total Robot Build Rating . | . . . Part Schematics Acquired . | . . . Parts Built . | . . . Authchips . | . . . Time . | . . . Total Part Build Rating . | . . . Parts Repaired 1 | . 1 . Time 26 | . 26 . Parts Recycled . | . . . Recycled Matter . | . . . Retrieved Matter . | . . . Retrieved Components . | . . . Parts Scanalyzed . | . . . Part Schematics Acquired . | . . . Parts Damaged . | . . . Bothacking | -11 -10 -10 ------------ Run | Yrd Mat Min Used RIF Installer . | . . . Robots Hacked . | . . . Non-combat . | . . . Combat . | . . . Robot Hacks Applied . | . . . Relay Couplers Released . | . . . Fabnet Peak Effective % . | . . . Robots Rewired . | . . . Allies Hacked . | . . . Hacks Repelled . | . . . Allies | -11 -10 -10 -------- Run | Yrd Mat Min Total Allies . | . . . Largest Group . | . . . Highest-Rated Group . | . . . Highest-Rated Ally . | . . . Total Orders . | . . . Ally Attacks . | . . . Total Damage . | . . . Kills . | . . . Allies Corrupted . | . . . Allies Melted . | . . . Intel | -11 -10 -10 ------- Run | Yrd Mat Min Robot Analysis Total 2 | . 2 . Derelict Logs Recovered . | . . . Drone Launches . | . . . Drone Recoveries . | . . . Exploration | -11 -10 -10 ------------- Run | Yrd Mat Min Turns Passed 1880 | 77 1677 126 Spaces Moved 881 | 25 802 54 Core . | . . . Treads 450 | . 450 . Legs 99 | 25 74 . Wheels 332 | . 278 54 Hover . | . . . Flight . | . . . Fastest Speed 120 | 120 120 175 Average Speed 161 | 120 161 175 Slowest Speed 175 | 120 175 175 Overloaded Moves . | . . . Propulsion Burnouts . | . . . Robots Hopped . | . . . Cave-ins Triggered . | . . . Exploration Rate (%) 39 | 3 96 18 Regions Visited 2 Branch Regions 1 Pre-discovered Areas . | . . . Known Exits Taken . | . . . Unknown Exits Taken 2 | 1 1 . Scrap Searched . | . . . Spaces Dug . | . . . Terrain Destroyed . | . . . Melee . | . . . Projectile . | . . . AOE . | . . . Terrain Rammed . | . . . Walls Destroyed . | . . . Machines Disabled . | . . . Actions | -11 -10 -10 --------- Run | Yrd Mat Min Total 1146 | 58 1022 66 Wait 96 | 20 75 1 Move 879 | 24 801 54 Hop . | . . . Pick Up 24 | 1 23 . Fast Attach 6 | 1 5 . Attach 7 | 1 5 1 Detach 4 | 1 3 . Swap 5 | . 5 . Drop 14 | 2 12 . Fire 111 | 8 93 10 Melee . | . . . Ram . | . . . Kick . | . . . Crush . | . . . Escape Stasis . | . . . Rewire . | . . . Trap . | . . . Miscellaneous . | . . . Route ------- -11/Scrapyard -10/Materials (discovered 5 exits: [*Mat x3] / [*Min x2]) -10/Mines History --------- Turn | Location | Event 9 | -11/Scrapyard | Discovered new exit (range 3) 78 | -11/Scrapyard | Entered Materials 309 | -10/Materials | Build established: Mutant 511 | -10/Materials | Discovered new exit (range 16) 701 | -10/Materials | Discovered new exit (range 16) 772 | -10/Materials | Repaired Lgt. Treads 932 | -10/Materials | Core integrity fell below 50% 1163 | -10/Materials | Discovered new exit (range 12) 1284 | -10/Materials | Discovered new exit (range 14) 1316 | -10/Materials | Central database locked down 1440 | -10/Materials | Core integrity fell below 20% 1596 | -10/Materials | Discovered new exit (range 16) 1755 | -10/Materials | Entered Mines 1881 | -10/Mines | Destroyed by G-47 Trooper with Particle Gun Last Messages --------------- Downloading prototype IDs... Imp. Flight Unit Cld. Ion Engine 01588_ Acquired Assault Rifle. 01596_ EXIT=FOUND 01697_ K-01 Serf cleans the Terminal. 01726_ Acquired Med. Matter Pod. 01739_ Acquired 13 matter. 01741_ Acquired 87 matter. LOCATION=UNKNOWN GOAL=ESCAPE 01758_ S-10 Pest destroyed. 01758_ Switching to secondary target: S-10 Pest. 01761_ S-10 Pest destroyed. 01763_ Critical hit (Destroy). 01763_ Lgt. Treads destroyed. 01770_ S-10 Pest destroyed. 01778_ Acquired 10 matter. 01809_ T-07 Excavator destroyed. 01876_ G-47 Trooper suffers critical hit (Burn). Map ----- +----------------------------------------------------+ | ?????????????????????????????????????????????????? | | ?????????????????????????????????????????????????? | | ?????????????????????????????????????????????????? | | ?????????????????????????????????????????????????? | | ?????????????????????????????????????????????????? | | ?????????????????????????????????????????????????? | | ?????????????????????????????????????????????????? | | ?????????????????????????????????????????????????? | | ??????????????????????? ?????????????????????????? | | ??????????????????????? ?????????????????????????? | | ??????????????????????? ?????????????????????????? | | ??????????????????????? #????????????????????????? | | ??????????????????????? #????????????????????????? | | ??????????????????????? #????????????????????????? | | ????????????????????### #????????????????????????? | | ????????????????????# ????????????????????????? | | ????????????????????# ????????????????????????? | | ???????????????????## ?????????????????????????? | | ???????????????????? ?????????????????????????? | | ????????????????????# ?????????????????????????? | | ????????????????????? ?????????????????????????? | | ?????????????????????# #?????????????????????????? | | ?????????????????????# ####??????????????????????? | | ?????????????????????# #??????????????????????? | | ?????????????????????####g#??????????????????????? | | ?????????????????????####@#######????????????????? | | ?????????????????????# #??????????? | | ?????????????????????# ######## #????????????????? | | ????????????????????## ##??????????????????????? | | ????????????????????# #??????????????????????? | | ????????????????????# #??????????????????????? | | ???????????????????## ##??????????????????????? | | ??????????????????## ##???????????????????????? | | ?????????????????## ##??????????#?????????????? | | ?????????????????# #?????????# ##????????????? | | ????????????????## ##??????? ##???????????? | | ????????????????# """ ##????# ##??????????? | | ????????????????# """ #### #??????????? | | ????????????????## """ #??????????? | | ?????????????????# #??????????? | | ?????????????????## #### ### #??????????? | | ??????????????????###???# #??? #??????????? | | ????????????????????????# #????? #??????????? | | ????????????????????????# #?????? ??????????? | | ???????????????????###### #???????? ??????????? | | ???????????????????# |%!#??????????????????????? | | ???????????????????# ######??????????????????????? | | ???????????????????# #???????????????????????????? | | ???????????????????# #???????????????????????????? | | ???????????###?????# #???????????????????????????? | +----------------------------------------------------+ Best States ------------- Heat Dissipation 39 Energy Generation 10 Energy Capacity 250 Matter Stores 300 Matter Capacity 300 Sight Range 16 Terrain Scan Density 10 Evasion (%) 55 Recoil Reduction 2 Item Schematics ----------------- None Robot Schematics ------------------ None Fabricated ------------ Nothing Alien Tech Used ----------------- None Achievements -------------- None Challenges ------------ None Game ------ Seed TimingAntigravPrototype Manual? 0 Play Time 00:12:56 Cumulative 279.1 hours Start 2024.05.03 @ 23:59:42 End 2024.05.04 @ 00:11:53 Sessions 1 Manual Loads 0 Difficulty Rogue Special Mode None Game No. 176 Rogue 32 Adventurer 144 Explorer 0 Win Type - Total 4 Types 2/0/1/1/0/0/0/0/0 Lore% 63 Gallery% 75 Achievement% 62 Wizard Run 0 Options --------- Layout 0 ASCII 0 Keyboard 0 Movement Mouse Keybinds 0 Fullscreen 2 Font 20/SmallcapsGlow Map View 66x50 Zoom Use 0% Tactical HUD 1 Map Filters NONE Filters NONE Steam X RUN: 434599bd-2bde-4d2c-8cb6-19755971dfdd